{"text_format":"3","workbook":"xlsx","n_sheets":1,"sheets":["RMA Form"],"not_rendered":{"images":1},"read":"whole","date_system":"1900"}

{"sheet":"RMA Form","index":0,"n_rows":68,"n_cols":6,"rows_kept":68,"merged":[[0,0,0,4],[1,2,1,3],[2,2,2,3],[3,2,3,3],[4,2,4,3],[5,2,5,3],[6,2,6,3],[7,2,7,3],[13,0,13,4],[15,0,15,4]]}
["Please note: We are able to send replacement parts to repair most case RMA's.\n  This will save time and cost to yourself, if possible please request a spare part prior to sending any cases on RMA"]
[null,"A One Distribution (UK) Ltd","Customer Details"]
[null,"Hardware House","Account #:"]
[null,"James Street"]
[null,"Bury","Company Name:"]
[null,"Lancs"]
[null,"BL9 7EG","E-Mail Address:"]
[null,"United Kingdom"]
[null,null,"Contact Name:","Date:"]
["E-mail:","returns@aonedistribution.com",null,{"$f":"TODAY()","v":"2022-03-30"}]
[null,null,"Position","Agreed:"]
["Rev 22.3",null,null,{"$f":"IF(C4<>\"\",IF(AND(C10<>\"\",C12<>\"\"),\"YES\",\"NO\"),\"\")","v":""}]
[]
["By entering your name an position above, you have read and agree to A One Distribution (UK) Ltd's Terms and Condition of Sale (April 1998) and returns procedure.  Copies of which are freely available on the web-site (https://www.aone.co.uk/support.asp).  Failure to enter these details will result in no RMA # being issued."]
[]
["Please enter a SINGLE item per line.  Failure to do this may result in a delay in the RMA # being issued.\n\n"]
["A One Stock Code","Serial #","Described Fault","Invoice #","Spare Part"]
[{"$nulls":5},{"$f":"IF(OR(C18=\"FAULTY\",C18=\"DEAD\",C18=\"DOA\",C18=\"D.O.A\"),\"REJECT\",\"\")","v":""}]
[{"$nulls":5},{"$f":"IF(OR(C19=\"FAULTY\",C19=\"DEAD\",C19=\"DOA\",C19=\"D.O.A\"),\"REJECT\",\"\")","v":""}]
[{"$nulls":5},""]
[{"$nulls":5},""]
[{"$nulls":5},""]
[{"$nulls":5},""]
[{"$nulls":5},""]
[{"$nulls":5},""]
[{"$nulls":5},""]
[{"$nulls":5},""]
[{"$nulls":5},""]
[{"$nulls":5},""]
[{"$nulls":5},""]
[{"$nulls":5},""]
[{"$nulls":5},""]
[{"$nulls":5},""]
[{"$nulls":5},""]
[{"$nulls":5},""]
[{"$nulls":5},""]
[{"$nulls":5},""]
[{"$nulls":5},""]
[{"$nulls":5},""]
[{"$nulls":5},""]
[{"$nulls":5},""]
[{"$nulls":5},""]
[{"$nulls":5},""]
[{"$nulls":5},""]
[{"$nulls":5},""]
[{"$nulls":5},""]
[{"$nulls":5},""]
[{"$nulls":5},""]
[{"$nulls":5},""]
[{"$nulls":5},""]
[{"$nulls":5},""]
[{"$nulls":5},""]
[{"$nulls":5},""]
[{"$nulls":5},""]
[{"$nulls":5},""]
[{"$nulls":5},""]
[{"$nulls":5},""]
[{"$nulls":5},""]
[{"$nulls":5},""]
[{"$nulls":5},""]
[{"$nulls":5},""]
[{"$nulls":5},""]
[{"$nulls":5},""]
[{"$nulls":5},""]
[{"$nulls":5},""]
[{"$nulls":5},""]
[{"$nulls":5},""]
[{"$nulls":5},""]